{"text_format":"1","workbook":"xlsx","n_sheets":4,"sheets":["Cadastro","dados","PesquisaAjudante","PesquisaProgramação"],"not_rendered":{"charts":0,"images":1,"macros":1,"external_links":1,"defined_names":4,"comments":1,"pivot_tables":0},"unopened":[],"bounds":{"document_bytes":16777216,"sheet_cells":100000,"rows_first":2000,"rows_last":500,"rows_between":2000,"halvings":0,"cell_chars":16384,"cell_head_chars":4096},"cells_cut":0,"cells_raw":0,"read":"whole","date_system":"1900"}

{"sheet":"Cadastro","index":0,"n_rows":68,"n_cols":30,"rows_kept":68,"cut":false,"hidden":false,"merged":[[4,10,6,12],[8,10,10,12],[2,2,2,12],[4,2,6,4],[4,6,6,8],[41,3,41,4],[41,7,41,8],[41,11,41,12],[42,3,42,4],[42,7,42,8],[42,11,42,12],[34,11,34,12],[35,11,35,12],[25,4,25,12],[23,2,23,3],[25,2,25,3],[23,4,23,5],[21,2,21,4],[21,5,21,7],[23,10,23,12],[35,3,35,4],[35,7,35,8],[34,3,34,4],[34,7,34,8],[8,16,8,17],[9,16,9,17],[6,16,6,17],[2,16,2,29],[4,16,4,17],[4,18,4,19],[6,18,6,29],[4,21,4,22],[8,23,10,25],[8,19,10,21],[8,27,10,29],[4,23,4,25],[4,27,4,28],[12,23,15,23],[12,24,15,24],[21,18,21,19],[18,2,18,12],[21,10,21,12],[12,16,15,16],[12,17,15,17],[12,18,15,19],[20,10,20,11],[17,18,17,19],[18,18,18,19],[19,18,19,19],[20,18,20,19],[20,2,20,3],[12,28,15,28],[12,29,15,29],[37,2,40,4],[37,6,40,8],[37,10,40,12],[30,2,33,4],[30,6,33,8],[30,10,33,12],[27,2,28,2],[27,3,28,5],[27,6,28,6],[27,7,28,9],[27,10,28,10],[27,11,28,12],[25,20,27,22],[34,16,34,29],[12,25,15,25],[12,26,15,26],[22,18,22,19],[23,18,23,19],[12,27,15,27],[12,20,15,20],[12,21,15,21],[12,22,15,22],[67,10,69,12],[58,2,58,3],[58,4,58,5],[59,2,59,3],[59,4,59,12],[60,2,61,2],[60,3,61,5],[60,6,61,6],[60,7,61,9],[64,2,65,4],[64,6,65,8],[64,10,65,12],[36,16,36,17],[36,18,36,19],[36,21,36,22],[36,23,36,25],[36,27,36,28],[57,7,57,8],[60,10,61,10],[60,11,61,12],[63,2,63,4],[63,6,63,8],[63,10,63,12],[52,2,52,12],[55,2,55,4],[56,2,56,4],[56,7,56,8],[44,10,46,12],[44,6,46,8],[44,16,47,16],[44,17,47,17],[44,18,47,19],[44,20,47,20],[44,21,47,21],[38,16,38,17],[38,18,38,29],[40,16,40,17],[40,19,42,21],[40,23,42,25],[40,27,42,29],[41,16,41,17],[57,20,59,22],[51,18,51,19],[52,18,52,19],[53,18,53,19],[54,18,54,19],[55,18,55,19],[44,27,47,27],[44,28,47,28],[44,29,47,29],[49,18,49,19],[50,18,50,19],[44,22,47,22],[44,23,47,23],[44,24,47,24],[44,25,47,25],[44,26,47,26]]}
[]
[null,null,1]
[null,null,"CONTROLE DE AJUDANTES",null,null,null,null,null,null,null,null,null,null,null,null,null,"Pesquisa Ajudante"]
[]
[null,null,"Cadastrar Ajudante",null,null,null,"Alterar Ajudante",null,null,null,"Pesquisa Ajudante",null,null,null,null,null,"Matricula:",null,null,null,null,"Tipo:",null,"Manut. Fundição",null,null,"Situação:","Ativo"]
[]
[null,null,null,null,null,null,null,null,null,null,null,null,null,null,null,null,"Funcionário:"]
[]
[null,null,null,null,null,null,null,null,null,null,"FECHAR \nAPLICATIVO",null,null,null,null,null,"Data:",null,null,"FECHAR \nAPLICATIVO",null,null,null,"Limpar Pesquisa",null,null,null,"Pesquisar Ajudante"]
[null,null,null,null,null,null,null,null,null,null,null,null,null,null,null,null,{"$f":"TODAY()","v":"2024-01-17"}]
[]
[]
[null,null,null,null,null,null,null,null,null,null,null,null,null,null,null,null,"Situação","Matricula","Funcionário",null,"Cadeado","Nº Cadeado","Tipo","Tipo","NR-12\nControle Energias Perigosas","NR-18\nPlataforma Elevatória","NR-23\nBrigada de Incêndio","NR-33\nEspaço Confinado\nVIGIA / TRABALHADOR","NR-12\nControle Energias Perigosas","NR-23\nBrigada de Incêndio"]
[]
[]
[]
[null,null,null,null,null,null,null,null,null,null,null,null,null,null,null,null,{"$f":"K22","v":"Ativo"},{"$f":"E24","v":24355},{"$f":"E26","v":{"$error":"#REF!"}},null,{"$f":"I24","v":"SIM"},{"$f":"K24","v":122},{"$f":"C22","v":"Manut. Fundição"},{"$f":"F22","v":"Manut. Usinagem"},{"$f":"D36","v":{"$error":"#REF!"}},{"$f":"H36","v":{"$error":"#REF!"}},{"$f":"L36","v":{"$error":"#REF!"}},{"$f":"D43","v":{"$error":"#REF!"}},{"$f":"H43","v":{"$error":"#REF!"}},{"$f":"L43","v":{"$error":"#REF!"}}]
[null,null,null,null,null,null,null,null,null,null,null,null,null,null,2]
[null,null,"Cadastro de Ajudante"]
[]
[null,null,"Tipo:",null,null,null,null,null,null,null,"Situação:"]
[null,null,"Manut. Fundição",null,null,"Manut. Usinagem",null,null,null,null,"Ativo"]
[]
[null,null,"Matricula:",null,24355,null,null,"Cadeado:","SIM","Número:",122]
[]
[null,null,"Funcionário:",null,{"$f":"#REF!","v":{"$error":"#REF!"}},null,null,null,null,null,null,null,null,null,null,null,null,null,null,null,"Historico de programação de Ajudantes.",null,null,null,null,null,null,"* Duplo Clique para Programar o Ajudante."]
[]
[null,null,"Setor:",{"$f":"#REF!","v":{"$error":"#REF!"}},null,null,"Cargo:",{"$f":"#REF!","v":{"$error":"#REF!"}},null,null,"Turno:",{"$f":"#REF!","v":{"$error":"#REF!"}}]
[]
[]
[null,null,"NR 12 - PECP\nProcedimento Controle de Energias Perigosas",null,null,null,"NR 18 - PEMT\nPlataforma Elevatória Móvel de Trabalho",null,null,null,"NR 23\nBrigada de Incêndio Voluntaria",null,null,null,null,null,"duplo clique"]
[]
[]
[]
[null,null,"Capacitado","Vencimento",null,null,"Capacitado","Vencimento",null,null,"Capacitado","Vencimento",null,null,null,null,"historico de programação ajudantes"]
[null,null,{"$f":"#REF!","v":{"$error":"#REF!"}},{"$f":"#REF!","v":{"$error":"#REF!"}},null,null,{"$f":"#REF!","v":{"$error":"#REF!"}},{"$f":"#REF!","v":{"$error":"#REF!"}},null,null,{"$f":"#REF!","v":{"$error":"#REF!"}},{"$f":"#REF!","v":{"$error":"#REF!"}}]
[null,null,null,null,null,null,null,null,null,null,null,null,null,null,null,null,"Matricula:",null,null,null,null,"Tipo:",null,"Manut. Fundição",null,null,"Situação:","Ativo"]
[null,null,"NR 33 - Trabalhos em Espaço Confinado \nVIGIA / TRABALHADOR",null,null,null,"NR 33 - Trabalhos em Espaço Confinado \nSUPERVISOR DE ENTRADAS",null,null,null,"NR 35\nTrabalho em Altura"]
[null,null,null,null,null,null,null,null,null,null,null,null,null,null,null,null,"Funcionário:"]
[]
[null,null,null,null,null,null,null,null,null,null,null,null,null,null,null,null,"Data:",null,null,"FECHAR \nAPLICATIVO",null,null,null,"Limpar Pesquisa",null,null,null,"Pesquisar Ajudante"]
[null,null,"Capacitado","Vencimento",null,null,"Capacitado","Vencimento",null,null,"Capacitado","Vencimento",null,null,null,null,{"$f":"TODAY()","v":"2024-01-17"}]
[null,null,{"$f":"#REF!","v":{"$error":"#REF!"}},{"$f":"#REF!","v":{"$error":"#REF!"}},null,null,{"$f":"#REF!","v":{"$error":"#REF!"}},{"$f":"#REF!","v":{"$error":"#REF!"}},null,null,{"$f":"#REF!","v":{"$error":"#REF!"}},{"$f":"#REF!","v":{"$error":"#REF!"}}]
[]
[null,null,null,null,null,null,"FECHAR \nAPLICATIVO",null,null,null,"SALVAR",null,null,null,null,null,"Situação","Matricula","Funcionário",null,"Cadeado","Nº Cadeado","Tipo","Tipo","NR-12\nControle Energias Perigosas","NR-18\nPlataforma Elevatória","NR-23\nBrigada de Incêndio","NR-33\nEspaço Confinado\nVIGIA / TRABALHADOR","NR-12\nControle Energias Perigosas","NR-23\nBrigada de Incêndio"]
[]
[]
[]
[null,null,null,null,null,null,null,null,null,null,null,null,null,null,null,null,{"$f":"K54","v":0},{"$f":"E56","v":0},{"$f":"E58","v":0},null,{"$f":"I56","v":0},{"$f":"K56","v":0},{"$f":"C54","v":0},{"$f":"F54","v":0},{"$f":"D68","v":"00:00:00"},{"$f":"H68","v":"00:00:00"},{"$f":"L68","v":"00:00:00"},{"$f":"D75","v":"00:00:00"},{"$f":"H75","v":"00:00:00"},{"$f":"L75","v":"00:00:00"}]
[]
[null,null,null,null,null,null,null,null,null,null,null,null,4,null,4]
[]
[null,null,"Programar Ajudante"]
[]
[]
[null,null,"Logado como"]
[null,null,"jonatan.klingenfuss",null,null,null,null,"Lançado em"]
[null,null,null,null,null,null,null,{"$f":"Q10","v":"2024-01-17"},null,"hoje",null,null,null,null,null,null,null,null,null,null,"Historico de programação de Ajudantes.",null,null,null,null,null,null,"* Duplo Clique para Programar o Ajudante."]
[null,null,"Matricula:",null,{"$f":"R17","v":24355}]
[null,null,"Funcionário:",null,{"$f":"S17","v":{"$error":"#REF!"}}]
[null,null,"Setor:",{"$f":"D28","v":{"$error":"#REF!"}},null,null,"Cargo:",{"$f":"H28","v":{"$error":"#REF!"}},null,null,"Turno:",{"$f":"L28","v":{"$error":"#REF!"}}]
[]
[null,null,null,null,null,null,null,null,null,null,null,null,null,null,null,"corrigir lançamento"]
[null,null,"DATA",null,null,null,"Horario de Inicio",null,null,null,"Horario de Fim"]
[null,null,"2023-11-11",null,null,null,"08:00:00",null,null,null,"14:00:00"]
[]
[]
[null,null,null,null,null,null,null,null,null,null,"PROGRAMAR AJUDANTE"]

{"sheet":"dados","index":1,"n_rows":5,"n_cols":27,"rows_kept":5,"cut":false,"hidden":false,"merged":[]}
["Automotiva","Pessoal Afastado-DPRF","CARLOS ALBERTO SCHULZ","Mecanico Manutencao III","EDSON NOGUEIRA NATEL",65199,"1º TURNO",70,20383,{"$f":"[1]Planilha1!J31","v":"Sim"},{"$f":"[1]Planilha1!L31","v":"Habilitar"},{"$f":"[1]Planilha1!M31","v":"Sim"},{"$f":"[1]Planilha1!O31","v":"Vencido"},{"$f":"[1]Planilha1!P31","v":"Sim"},{"$f":"[1]Planilha1!R31","v":"Vencido"},{"$f":"[1]Planilha1!S31","v":"Sim"},{"$f":"[1]Planilha1!U31","v":"Vencido"},{"$f":"[1]Planilha1!V31","v":"Não"},{"$f":"[1]Planilha1!X31","v":"Não Necessário"},{"$f":"[1]Planilha1!Y31","v":"Sim"},{"$f":"[1]Planilha1!AA31","v":"Vencido"}]
["Divisão","Setor","Supervisor","Cargo","Funcionário","Centro de custo","Escala","Turno","Matrícula","NR12 - Procedimento Controle de Energias Perigosas","Data Realização Treinamento","Vencimento","NR18 - Plataforma Elevatória móvel de Trabalho","Data Realização Treinamento","Vencimento","NR23 - Brigada Voluntaria","Data Realização Treinamento","Vencimento","NR33 - Espaço Confinado TRABALHADOR / VIGIA","Data Realização Treinamento","Vencimento","NR33 - Espaço Confinado SUPERVISOR DE ENTRADA","Data Realização Treinamento","Vencimento","NR35 - Tabalho em Altura","Data Realização Treinamento","Vencimento"]
["Manut.Fundição","SIM","ATIVO",{"$f":"TODAY()","v":"2024-01-17"}]
["Manut.Usinagem","NÃO","INATIVO"]
["Calderaria"]

{"sheet":"PesquisaAjudante","index":2,"n_rows":4,"n_cols":15,"rows_kept":4,"cut":false,"hidden":false,"merged":[]}
["Lançado em","Lançado em","Situação","Matricula","Funcionário","Cadeado","Nº Cadeado","Tipo1","Tipo2","NR12 - Procedimento Controle de Energias Perigosas","NR18 - Plataforma Elevatória móvel de Trabalho","NR23 - Brigada Voluntaria","NR33 - Espaço Confinado TRABALHADOR / VIGIA","NR33 - Espaço Confinado SUPERVISOR DE ENTRADA","NR35 - Tabalho em Altura"]
[]
[]
["Lançado em","Situação","Matricula","Funcionário","Cadeado","Nº Cadeado","Tipo1","Tipo2","NR12 - Procedimento Controle de Energias Perigosas","NR18 - Plataforma Elevatória móvel de Trabalho","NR23 - Brigada Voluntaria","NR33 - Espaço Confinado TRABALHADOR / VIGIA","NR33 - Espaço Confinado SUPERVISOR DE ENTRADA","NR35 - Tabalho em Altura"]

{"sheet":"PesquisaProgramação","index":3,"n_rows":4,"n_cols":12,"rows_kept":4,"cut":false,"hidden":false,"merged":[]}
["Lançado em","Lançado em","Funcionário","Programador","Matricula","Tipo1","Tipo2","Situação","Data","Data","Horario de Inicio","Horario de Fim"]
[]
[]
["Lançado em","Programador","Funcionário","Matricula","Tipo1","Tipo2","Situação","Data","Horario de Inicio","Horario de Fim"]